bitfinex-derivatives/quotes_ETHF0:USTF0_20260307
["timestamp","ask_amount","ask_price","bid_price","bid_amount"]
[1772920468869,0.57592444,1968.8,1968.2,0.59538986]
[1772920474375,0.5814281,1968.9,1968.2,0.59538986]
[1772920475378,0.58622159,1968.9,1968.2,0.59538986]
[1772920502601,0.58614711,1968.9,1968.2,0.59538986]
[1772920507711,0.57540675,1969.1,1968.2,0.59538986]
[1772920507908,0.57540675,1969.1,1968.5,0.55880111]
[1772920511808,0.57540675,1969.1,1968.3,0.55880111]
[1772920513314,0.55934883,1968.9,1968.1,0.55880111]
[1772920513612,0.55934883,1968.9,1968.2,0.55880111]
[1772920523321,0.55934883,1968.9,1968.1,0.55880111]
[1772920525616,0.55934883,1968.9,1968.2,0.55880111]
[1772920525817,0.55934883,1968.9,1968.4,0.55880111]
[1772920547238,0.56614392,1968.8,1968.0,19.211]
[1772920547439,0.56614392,1968.8,1968.1,0.58272545]
[1772920562150,0.56614392,1968.8,1968.2,0.54170631]
[1772920572963,0.56320642,1969.1,1968.4,0.56377744]
[1772920573162,6.9818352,1969.0,1968.4,0.56377744]
[1772920573368,0.56320642,1969.0,1968.4,0.56377744]
[1772920574268,6.41919332,1968.9,1968.4,0.56377744]
[1772920574566,0.56320642,1968.9,1968.4,0.56377744]
[1772920584577,0.56320642,1968.9,1968.2,0.56377744]
[1772920590284,10.92021472,1969.3,1968.2,0.56377744]
[1772920590481,0.56320642,1969.1,1968.2,0.56377744]
[1772920596793,0.54519747,1968.9,1968.2,0.56377744]
[1772920601492,6.91091,1969.3,1968.2,0.56377744]
[1772920601696,0.54519747,1969.1,1968.2,0.56377744]
[1772920601894,0.54519747,1969.1,1968.2,1.80635535]
[1772920602191,0.54519747,1969.1,1968.3,0.53976922]
[1772920612702,0.54519747,1969.3,1968.3,0.53976922]
[1772920616911,0.54519747,1969.4,1968.6,0.53976922]
[1772920617101,0.54519747,1969.4,1968.8,0.53976922]
[1772920620613,1.37822307,1969.5,1968.8,0.53976922]
[1772920621011,0.55377173,1969.6,1968.8,0.53976922]
[1772920621911,0.55377173,1969.6,1969.0,0.55946843]
[1772920625210,0.5421532,1970.0,1969.1,1.80635535]
[1772920625413,0.5421532,1970.0,1969.3,0.57291908]
[1772920631718,0.1,1970.1,1969.3,0.57291908]
[1772920632119,0.6421532,1970.1,1969.3,0.57291908]
[1772920632820,0.5421532,1970.4,1969.5,0.57291908]
[1772920634524,0.5421532,1970.4,1969.8,0.57291908]
[1772920634716,0.5421532,1970.4,1969.9,0.57291908]
[1772920637322,0.5421532,1970.4,1970.0,0.57291908]
[1772920637518,0.5421532,1970.6,1970.0,0.57291908]
[1772920646030,1.89707773,1970.7,1970.3,0.57291908]
[1772920646523,0.5421532,1970.6,1970.3,0.57291908]
[1772920647230,1.89707773,1970.7,1970.3,0.57291908]
[1772920648031,0.5421532,1970.7,1970.3,0.57291908]
[1772920648530,0.5421532,1970.7,1970.0,21.50543]
[1772920648830,0.5421532,1970.7,1970.1,0.57291908]
[1772920649927,1.80351092,1971.0,1970.1,0.57291908]
[1772920650133,0.5421532,1971.1,1970.3,0.57291908]
[1772920650334,1.80351092,1971.4,1970.6,0.57291908]
[1772920650534,0.5421532,1971.3,1970.6,0.57771431]
[1772920650736,0.5421532,1971.3,1970.6,0.00479523]
[1772920652232,0.5421532,1971.3,1970.6,0.57771431]
[1772920653435,0.56797893,1971.6,1971.3,0.5563338]
[1772920653635,0.15988345,1972.1,1971.3,0.5563338]
[1772920653927,0.15988345,1972.1,1971.7,0.5563338]
[1772920654135,0.15988345,1972.1,1971.5,0.5563338]
[1772920655325,0.15988345,1972.1,1971.3,0.5563338]
[1772920655326,0.15847768,1972.0,1971.3,0.5563338]
[1772920656037,0.15847768,1972.0,1971.5,0.5563338]
[1772920658137,0.15847768,1972.0,1971.3,0.5563338]
[1772920658534,4.26321472,1972.8,1970.6,0.60343578]
[1772920658535,0.25354,1972.2,1970.6,0.60343578]
[1772920658734,1.80351092,1971.8,1970.9,0.59864055]
[1772920658935,1.80351092,1971.6,1970.7,0.59864055]
[1772920659136,0.56797893,1971.5,1970.7,0.59864055]
[1772920662233,0.56797893,1971.9,1971.0,0.66805138]
[1772920663842,0.56797893,1971.9,1971.2,0.66784271]
[1772920665339,0.56797893,1971.9,1971.4,0.66779455]
[1772920667542,0.56797893,1971.9,1971.2,0.65952328]
[1772920668749,1.80351092,1971.8,1971.0,0.65964778]
[1772920668945,0.56797893,1971.5,1970.8,0.65964778]
[1772920675345,0.56797893,1971.5,1970.6,0.00479523]
[1772920675547,0.56797893,1971.5,1970.7,0.66274878]
[1772920680355,0.56797893,1971.5,1970.4,0.67747315]
[1772920680356,0.56797893,1971.3,1970.4,0.67747315]
[1772920681252,0.0046076,1971.5,1970.2,17.652]
[1772920681253,0.0046076,1971.5,1970.8,1.47981389]
[1772920681453,0.0046076,1971.5,1971.0,1.47981389]
[1772920682755,0.0046076,1971.5,1971.1,1.39381904]
[1772920685660,1.38043219,1971.5,1971.1,1.39381904]
[1772920691162,1.38043219,1971.5,1970.9,1.39381904]
[1772920691362,1.38043219,1971.5,1971.0,1.39381904]
[1772920698963,1.38043219,1971.5,1970.7,1.39381904]
[1772920699559,1.37582459,1971.3,1970.4,1.39381904]
[1772920699766,1.37582459,1971.1,1970.4,1.39381904]
[1772920708464,1.37582459,1971.1,1970.3,20.32081904]
[1772920708665,1.37582459,1971.1,1970.4,1.39381904]
[1772920712073,1.37582459,1971.1,1970.2,0.00406213]
[1772920712375,1.37582459,1971.1,1970.3,1.39381904]
[1772920719279,1.37582459,1971.1,1970.2,1.27596697]
[1772920719683,1.34048966,1970.9,1970.2,0.00406213]
[1772920724381,1.34048966,1970.9,1970.2,1.27596697]
[1772920727288,0.25369,1971.0,1970.2,1.27596697]
[1772920727289,1.34048966,1970.7,1970.2,1.27596697]
[1772920729883,1.34048966,1970.7,1970.2,0.00406213]
[1772920730093,1.34048966,1970.7,1970.1,1.27190484]
[1772920730992,1.34048966,1970.7,1970.1,1.27552121]
[1772920738492,1.34048966,1970.9,1970.1,1.27552121]
[1772920738693,1.34048966,1970.7,1970.1,1.27552121]
[1772920742199,1.13321012,1970.9,1970.1,1.27552121]
[1772920742391,7.5360504,1970.8,1970.1,1.27552121]
[1772920742596,1.13321012,1970.8,1970.1,1.27552121]
[1772920742999,7.5360504,1970.7,1970.1,1.27552121]
[1772920743299,1.13321012,1970.7,1970.1,1.27552121]
[1772920751300,4.26060881,1970.9,1970.1,1.27552121]
[1772920751504,6.39048837,1971.1,1970.1,1.27552121]
[1772920751505,1.13321012,1971.1,1970.1,1.27552121]
[1772920751804,1.63084575,1971.0,1970.1,1.27552121]
[1772920752103,1.13321012,1971.0,1970.1,1.27552121]
[1772920752904,1.13321012,1971.0,1970.3,1.12929721]
[1772920754802,1.13321012,1971.0,1970.4,1.12929721]
[1772920756209,5.39381893,1971.2,1970.4,1.12929721]
[1772920756509,1.13321012,1971.2,1970.4,1.12929721]
[1772920757904,1.13321012,1971.2,1970.6,1.12929721]
[1772920776520,1.10079215,1971.4,1970.6,1.12929721]
[1772920776721,1.10079215,1971.2,1970.6,1.12929721]
[1772920783228,1.10079215,1971.0,1970.6,1.12929721]
[1772920800541,1.10079215,1971.2,1970.6,1.12929721]
[1772920800738,6.31701467,1971.5,1970.6,1.12929721]
[1772920800938,7.90030448,1971.4,1970.6,1.12929721]
[1772920801138,7.90030448,1971.3,1970.6,1.12929721]
[1772920801332,1.80244243,1970.9,1970.2,0.95743641]
[1772920801539,1.00789296,1970.8,1970.2,0.95743641]
[1772920802739,1.80244243,1970.9,1969.8,1.01083625]
[1772920802740,0.91993599,1970.4,1969.8,1.01083625]
[1772920802945,0.91993599,1970.2,1969.8,1.01083625]
[1772920803144,0.91993599,1970.2,1969.5,1.01083625]
[1772920803543,0.91993599,1970.4,1969.6,1.80244243]
[1772920803845,0.91993599,1970.6,1969.9,1.01083625]
[1772920806540,0.91993599,1970.9,1970.1,1.01083625]
[1772920812648,0.91993599,1970.7,1969.9,1.01083625]
[1772920820348,0.91993599,1971.0,1969.9,1.01083625]
[1772920820554,0.91993599,1970.8,1969.9,1.01083625]
[1772920826154,0.91993599,1970.8,1970.0,1.01083625]
[1772920831165,6.44192864,1970.7,1970.0,1.01083625]
[1772920831362,0.91993599,1970.6,1970.0,1.01083625]
[1772920846878,0.86597569,1970.4,1969.7,0.89535384]
[1772920847270,6.44909947,1970.3,1969.7,0.89535384]
[1772920847470,0.86597569,1970.2,1969.7,0.89535384]
[1772920849476,0.86597569,1970.2,1969.6,0.90082322]
[1772920856782,0.86597569,1970.2,1969.6,0.00546938]
[1772920857383,0.86597569,1970.2,1969.6,0.90082322]
[1772920858280,0.86597569,1970.4,1969.6,0.90082322]
[1772920861886,0.78172801,1970.6,1969.6,0.90082322]
[1772920873387,0.81256254,1970.9,1969.6,0.90082322]
[1772920873586,0.81256254,1970.7,1969.6,0.90082322]
[1772920873988,0.81256254,1970.7,1969.8,0.81551844]
[1772920874185,0.81256254,1970.7,1970.0,0.81551844]
[1772920880497,0.81256254,1970.6,1969.9,19.43951844]
[1772920880794,0.81256254,1970.6,1969.9,0.81551844]
[1772920881702,0.81256254,1970.4,1969.7,0.81551844]
[1772920881995,0.81256254,1970.4,1969.8,0.81551844]
[1772920885595,0.81256254,1970.4,1969.6,1.80932117]
[1772920885901,0.81256254,1970.4,1969.6,21.13383961]
[1772920886102,0.81256254,1970.4,1969.7,0.81551844]
[1772920899617,0.81256254,1970.4,1969.7,19.37751844]
[1772920900221,0.81256254,1970.4,1969.8,0.67870912]
[1772920902515,4.26246029,1970.7,1969.8,0.67870912]
[1772920902720,7.1457794,1970.6,1969.9,0.67870912]
[1772920902920,0.70853703,1970.6,1969.9,0.67870912]
[1772920907122,0.70853703,1970.8,1970.1,0.67870912]
[1772920907421,0.70853703,1970.6,1970.1,0.67870912]
[1772920912726,0.70853703,1970.9,1970.1,0.67870912]
[1772920912926,0.70853703,1970.7,1970.1,0.67870912]
[1772920917638,0.70853703,1970.7,1969.9,19.25370912]
[1772920917935,0.70853703,1970.7,1970.0,0.67870912]
[1772920920730,0.70853703,1970.7,1969.9,18.573]
[1772920921033,0.64065479,1970.3,1969.6,0.68156347]
[1772920921242,0.64065479,1970.5,1969.9,0.67609409]
[1772920933147,0.66654087,1970.7,1969.9,0.67609409]
[1772920936245,0.66654087,1970.7,1970.1,0.64945624]
[1772920936444,0.66654087,1970.9,1970.4,1.80385179]
[1772920936650,0.66654087,1970.8,1970.5,0.64945624]
[1772920936846,0.66654087,1970.8,1970.1,0.64945624]
[1772920940746,0.66654087,1970.7,1970.1,0.64945624]
[1772920940950,0.66654087,1970.7,1970.0,0.64945624]
[1772920945355,0.66654087,1970.7,1969.8,0.64945624]
[1772920945558,0.66654087,1970.5,1969.8,0.64945624]
[1772920956760,0.66654087,1970.5,1969.8,0.5625921]
[1772920958264,0.66654087,1970.5,1969.7,0.5625921]
[1772920976483,0.59117242,1970.3,1969.7,0.5625921]
[1772920983290,0.59117242,1970.3,1969.6,0.00546938]
[1772920983487,0.59117242,1970.3,1969.6,0.58838473]
[1772920983790,0.54854649,1970.5,1969.6,0.58838473]
[1772920983987,0.54854649,1970.3,1969.6,0.58838473]
[1772920990998,0.54854649,1970.3,1969.7,0.58291535]
[1772921002504,0.54854649,1970.3,1969.6,0.58838473]
[1772921002800,0.54854649,1970.2,1969.6,0.58838473]
[1772921005202,0.54854649,1970.5,1969.6,0.58838473]
[1772921005403,0.54854649,1970.3,1969.6,0.58838473]
[1772921011511,0.54854649,1970.3,1969.7,0.58291535]
[1772921030219,0.54854649,1970.3,1969.6,0.00546938]
[1772921033122,0.54854649,1970.3,1969.7,0.59198232]
[1772921046828,0.55722573,1970.5,1969.9,0.55670778]
[1772921055735,0.55722573,1970.2,1969.7,0.55670778]
[1772921079964,0.55722573,1970.2,1969.8,0.55980183]
[1772921080367,0.55722573,1970.2,1969.6,0.00546938]
[1772921083056,6.9570789,1970.1,1969.3,0.55980183]
[1772921083262,0.55174434,1970.0,1969.3,18.88680183]
[1772921083458,0.55174434,1970.0,1969.3,0.55980183]
[1772921084065,0.55770995,1970.0,1969.3,0.56470329]
[1772921084265,0.55174434,1969.9,1969.3,0.56470329]
[1772921084461,0.55174434,1969.9,1969.3,0.00490146]
[1772921084863,0.55174434,1969.8,1969.0,0.55980183]
[1772921085069,0.55174434,1969.8,1969.0,18.88180183]
[1772921085264,0.55174434,1969.8,1969.1,0.55980183]
[1772921085960,0.55174434,1969.8,1969.1,0.56455814]
[1772921086960,0.55770995,1970.0,1969.1,0.56455814]
[1772921101878,0.00596561,1970.0,1969.3,0.57720329]
[1772921113293,0.58096746,1970.0,1969.3,0.57720329]
[1772921114692,0.00596561,1970.0,1969.3,0.57720329]
[1772921119992,0.57500185,1970.6,1969.4,0.59077568]
[1772921120187,0.57500185,1970.6,1969.3,0.2539]
[1772921120188,0.57500185,1970.6,1969.6,0.59077568]
[1772921120795,0.57500185,1970.5,1969.6,0.59077568]
[1772921121195,0.58100335,1970.5,1969.6,0.59077568]
[1772921124601,0.58100335,1970.5,1969.7,0.59077568]
[1772921129201,0.0060015,1970.5,1970.1,0.59077568]
[1772921129506,0.57500185,1971.0,1970.3,0.59077568]
[1772921130304,0.58061455,1971.0,1970.3,0.59077568]
[1772921130510,0.57500185,1970.9,1970.3,0.59077568]
[1772921147020,0.57500185,1970.9,1970.3,18.96277568]
[1772921149223,0.57500185,1970.9,1970.4,0.57414413]
[1772921150618,2.22181088,1971.0,1970.4,0.57414413]
[1772921150824,0.56204965,1971.5,1970.8,0.57414413]
[1772921151021,0.56204965,1971.5,1970.9,0.57414413]
[1772921151826,0.56650316,1971.5,1970.9,0.57809545]
[1772921157628,0.00445351,1971.5,1971.0,0.57414413]
[1772921161130,0.57860352,1971.5,1971.0,0.57414413]
[1772921161631,0.57415001,1971.4,1971.0,0.57414413]
[1772921161829,0.57415001,1971.2,1970.9,0.5668198]
[1772921162336,0.58450928,1971.4,1970.9,0.5668198]
[1772921165736,0.58450928,1971.2,1970.7,0.55903673]
[1772921166940,0.58450928,1971.2,1970.7,0.5629904]
[1772921169232,0.58450928,1971.2,1970.7,0.00395367]
[1772921169431,1.80372221,1971.1,1970.5,0.55903673]
[1772921169632,0.58450928,1971.0,1970.5,0.55903673]
[1772921170436,0.58450928,1971.0,1970.5,0.56272569]
[1772921174036,0.58450928,1970.8,1970.5,0.00368896]
[1772921174339,0.58450928,1970.8,1970.4,0.55903673]
[1772921174838,0.58450928,1971.0,1970.4,0.55903673]
[1772921175234,0.58450928,1971.0,1970.4,0.56473348]
[1772921179747,0.58450928,1970.8,1970.4,0.00569675]
[1772921180046,0.58450928,1970.8,1970.2,0.55903673]
[1772921181047,0.58450928,1970.8,1970.2,0.56362207]
[1772921184255,0.58450928,1970.8,1970.3,0.55903673]
[1772921196462,0.55546357,1971.0,1970.3,0.55903673]
[1772921202365,0.55546357,1970.8,1970.3,0.55903673]
[1772921204064,4.81436075,1971.2,1970.3,0.55903673]
[1772921204270,0.55546357,1971.0,1970.3,0.55903673]
[1772921204470,0.55546357,1971.0,1970.2,0.55008693]
[1772921204764,0.55546357,1970.8,1970.2,0.55008693]
[1772921206361,0.55546357,1970.6,1970.2,0.00458534]
[1772921206566,0.55546357,1970.6,1970.0,0.54550159]
[1772921207757,0.55546357,1970.6,1970.0,0.55123615]
[1772921214264,0.80918357,1970.8,1970.0,0.55123615]
[1772921214463,6.94093157,1970.7,1970.0,0.55123615]
[1772921214664,0.55546357,1970.7,1970.0,0.55123615]
[1772921217971,0.55546357,1970.7,1970.0,19.09623615]
[1772921218171,0.55546357,1970.7,1970.1,0.54550159]
[1772921234684,0.55546357,1970.7,1969.5,51.44017763]
[1772921234982,0.57922743,1970.5,1969.6,0.54787522]
[1772921235683,0.57922743,1970.5,1969.6,0.55157008]
[1772921237182,0.57922743,1970.3,1969.6,0.55157008]
[1772921244600,0.57922743,1970.3,1969.7,0.54787522]
[1772921251602,0.57922743,1970.3,1969.7,19.19287522]
[1772921251900,0.57922743,1970.3,1969.8,0.54787522]
[1772921274725,0.57922743,1970.3,1969.6,0.58126286]
[1772921274726,4.76472031,1970.2,1969.6,0.58126286]
[1772921274926,0.57282642,1970.3,1969.6,0.58126286]
[1772921275132,6.43180462,1970.2,1969.6,0.58126286]
[1772921275331,0.57282642,1970.3,1969.6,0.58126286]
[1772921275527,6.43035891,1970.2,1969.6,0.58126286]
[1772921275727,0.57282642,1970.3,1969.8,0.58126286]
[1772921275928,7.00318533,1970.2,1969.8,0.58126286]
[1772921276224,0.57282642,1970.2,1969.8,0.58126286]
[1772921278429,0.57282642,1970.4,1969.8,0.58126286]
[1772921278730,6.99632806,1970.3,1969.8,0.58126286]
[1772921278931,0.57282642,1970.3,1969.8,0.58126286]
[1772921280434,0.57282642,1970.3,1969.6,0.58600363]
[1772921280636,6.99630691,1970.2,1969.6,0.58600363]
[1772921280835,0.57282642,1970.2,1969.6,0.58600363]
[1772921281339,0.57663841,1970.4,1969.7,0.59909294]
[1772921281531,6.42312236,1970.3,1969.7,0.59909294]
[1772921281725,0.57663841,1970.4,1969.7,0.59909294]
[1772921282034,6.42306396,1970.3,1969.7,0.59909294]
[1772921282231,0.57663841,1970.4,1969.7,0.59909294]
[1772921282433,6.42284995,1970.3,1969.7,0.59909294]
[1772921282733,0.57663841,1970.4,1969.7,0.59909294]
[1772921282932,6.42284995,1970.3,1969.7,0.59909294]
[1772921283133,0.57663841,1970.4,1969.7,0.59909294]
[1772921283331,6.42287246,1970.3,1969.7,0.59909294]
[1772921283531,0.57663841,1970.4,1969.7,0.59909294]
[1772921283736,6.42287246,1970.3,1969.7,0.59909294]
[1772921283932,0.57663841,1970.4,1969.7,0.59909294]
[1772921284133,6.42287246,1970.3,1969.7,0.59909294]
[1772921284334,0.57663841,1970.4,1969.7,0.59909294]
[1772921284637,6.42290628,1970.3,1969.7,0.59909294]
[1772921284834,0.57663841,1970.4,1969.7,0.59909294]
[1772921285035,6.42290628,1970.3,1969.7,0.59909294]
[1772921285236,0.57663841,1970.4,1969.7,0.59909294]
[1772921285437,6.42293872,1970.3,1969.7,0.59909294]
[1772921285637,0.57663841,1970.4,1969.7,0.59909294]
[1772921285836,6.42293872,1970.3,1969.7,0.59909294]
[1772921286036,0.57663841,1970.4,1969.7,0.59909294]
[1772921286334,6.42300339,1970.3,1969.7,0.59909294]
[1772921286538,0.57663841,1970.4,1969.7,0.59909294]
[1772921286740,6.42296306,1970.3,1969.7,0.59909294]
[1772921286941,0.57663841,1970.4,1969.7,0.59909294]
[1772921287239,6.42296306,1970.3,1969.7,0.59909294]
[1772921287434,0.57663841,1970.4,1969.7,0.59909294]
[1772921287638,6.4229951,1970.3,1969.7,0.59909294]
[1772921287839,0.57663841,1970.4,1969.7,0.59909294]
[1772921288035,0.57663841,1970.4,1969.9,0.54341528]
[1772921288036,6.4229951,1970.3,1969.9,0.54341528]
[1772921288237,0.57663841,1970.4,1969.9,0.54341528]
[1772921288439,6.4228178,1970.3,1969.9,0.54341528]
[1772921288638,0.57663841,1970.4,1969.9,0.54341528]
[1772921288841,6.4228178,1970.3,1969.9,0.54341528]
[1772921289041,0.57663841,1970.4,1969.9,0.54341528]
[1772921289241,6.42287698,1970.3,1969.9,0.54341528]
[1772921289437,4.26437541,1970.6,1970.1,0.54341528]
[1772921289637,0.5742814,1970.7,1970.1,0.54341528]
[1772921291138,0.5742814,1970.9,1970.3,0.54341528]
[1772921291344,0.5742814,1971.1,1970.5,0.54341528]
[1772921293244,0.5742814,1971.1,1970.7,0.54341528]
[1772921294444,1.87906777,1971.3,1970.7,0.54341528]
[1772921294845,0.5742814,1971.2,1970.7,0.54341528]
[1772921295245,1.30478637,1971.3,1970.7,0.54341528]
[1772921295448,1.80852338,1971.5,1970.7,0.54341528]
[1772921295449,0.57873491,1971.5,1970.7,0.54341528]
[1772921295647,0.57873491,1971.5,1970.9,0.54341528]
[1772921301849,0.5742814,1971.4,1970.9,0.54341528]
[1772921317652,0.59967028,1971.5,1970.9,0.54341528]
[1772921353387,0.85329028,1971.5,1970.4,11.22276191]
[1772921353580,0.54868731,1971.3,1970.4,0.58258428]
[1772921353787,0.54868731,1971.1,1970.4,0.58258428]
[1772921353988,0.54868731,1970.9,1970.3,0.58258428]
[1772921355379,0.54868731,1970.9,1970.1,19.005]
[1772921355578,0.54868731,1970.9,1970.2,0.58258428]
[1772921358085,0.54868731,1970.9,1970.1,19.59248724]
[1772921358479,0.54868731,1970.9,1970.2,0.57748724]
[1772921358689,0.54868731,1970.9,1970.0,0.57748724]
[1772921359385,0.54868731,1970.9,1969.9,0.57748724]
[1772921359592,0.59401714,1970.7,1969.9,0.57748724]
[1772921364988,0.59401714,1970.6,1969.7,0.57748724]
[1772921365493,0.59401714,1970.9,1969.7,0.57748724]
[1772921368494,0.59401714,1970.9,1970.1,0.57748724]
[1772921377199,0.59855273,1970.3,1969.7,0.55427888]
[1772921377498,0.59855273,1970.7,1969.8,0.55427888]
[1772921378199,0.59855273,1970.5,1969.8,0.55427888]
[1772921382404,0.25371,1970.8,1969.7,0.55427888]
[1772921382405,0.59855273,1970.3,1969.7,0.55427888]
[1772921383311,0.59855273,1970.1,1969.6,0.55901965]
[1772921383511,0.6038813,1970.1,1969.6,0.55901965]
[1772921390116,0.6038813,1970.1,1969.3,18.30927888]
[1772921390419,0.6038813,1970.1,1969.4,0.55427888]
[1772921391119,0.6038813,1970.1,1969.4,0.55959579]
[1772921398630,0.59855273,1970.4,1969.7,0.55427888]
[1772921398932,0.59855273,1970.3,1969.7,0.55427888]
[1772921399636,0.60491875,1970.3,1969.7,0.55427888]
[1772921413135,6.96385812,1970.2,1969.7,0.55427888]
[1772921413342,0.56591003,1970.2,1969.7,0.55427888]
[1772921416745,0.56591003,1970.2,1969.5,0.59205304]
[1772921419543,10.63347552,1970.6,1969.9,0.59205304]
[1772921419846,6.39875811,1970.5,1970.1,0.59205304]
[1772921420044,0.56591003,1970.6,1970.1,0.59205304]
[1772921420642,0.57093566,1970.6,1970.1,0.59205304]
[1772921438760,0.57093566,1970.6,1969.7,0.57264236]
[1772921448074,0.57093566,1970.6,1969.8,0.57264236]
[1772921449067,2.37421493,1970.6,1969.8,0.57264236]
[1772921449274,0.59836181,1970.5,1969.8,0.57264236]
[1772921449472,0.59836181,1970.4,1969.6,0.57264236]
[1772921460387,0.59836181,1970.2,1969.5,0.57264236]
[1772921462490,0.59836181,1970.2,1969.4,0.59571027]
[1772921474005,0.59836181,1970.2,1969.4,0.00531691]
[1772921474301,0.5976044,1969.9,1969.2,0.59039336]
[1772921475095,0.5976044,1969.9,1969.2,0.59601621]
[1772921498316,0.58977422,1969.5,1969.2,0.00562285]
[1772921498516,0.58977422,1969.5,1969.1,0.54599898]
[1772921498715,0.58977422,1969.7,1969.1,0.54599898]
[1772921499415,0.58977422,1969.7,1969.1,0.5516128]
[1772921506315,1.01928151,1969.7,1969.1,0.5516128]
[1772921506519,0.58977422,1969.6,1969.1,0.5516128]
[1772921515227,0.58977422,1970.2,1969.5,1.80489173]
[1772921515423,0.58977422,1970.1,1969.8,0.54599898]
[1772921515624,0.58977422,1970.1,1969.6,0.54599898]
[1772921539550,2.39466595,1970.1,1969.2,0.59697639]
[1772921539751,0.57441566,1970.0,1969.2,0.59697639]
[1772921541554,0.57441566,1970.3,1969.8,0.59697639]
[1772921541759,0.57441566,1970.2,1969.3,0.59697639]
[1772921542059,0.57441566,1970.2,1969.4,0.59697639]
[1772921555766,0.55015782,1970.5,1969.6,0.54810875]
[1772921555962,0.55015782,1970.4,1969.6,0.54810875]
[1772921580378,0.55015782,1970.2,1969.4,0.54810875]
[1772921581186,0.55015782,1970.2,1969.3,0.58461505]
[1772921583584,0.55561257,1970.0,1969.2,0.57210451]
[1772921585485,0.55561257,1970.0,1969.1,0.57771833]
[1772921589090,0.55561257,1970.0,1969.1,0.00561382]
[1772921589286,0.55561257,1969.8,1969.1,0.00561382]
[1772921590886,0.55561257,1969.7,1969.1,0.00561382]
[1772921595792,0.55561257,1969.7,1968.8,0.57210451]
[1772921596386,0.55561257,1969.5,1968.7,0.57210451]
[1772921596793,0.55561257,1969.5,1968.7,0.57607613]
[1772921598890,0.55561257,1969.5,1968.7,0.00397162]
[1772921601095,0.55561257,1969.2,1968.1,0.57210451]
[1772921601290,0.55561257,1969.1,1968.1,0.57210451]
[1772921602199,0.55561257,1969.0,1968.1,0.57679487]
[1772921605698,1.81073104,1969.1,1968.1,0.57679487]
[1772921605699,0.55561257,1968.7,1968.1,0.57679487]
[1772921605891,0.55561257,1968.7,1968.1,0.00469036]
[1772921606800,0.55561257,1968.7,1967.8,0.57210451]
[1772921607893,0.55561257,1968.7,1967.8,0.57847757]
[1772921610806,0.55561257,1968.7,1967.8,0.00637306]
[1772921612605,0.54857921,1968.4,1967.8,0.00637306]
[1772921612802,0.54857921,1968.4,1967.6,0.594528]
[1772921613004,0.54857921,1968.4,1967.2,0.594528]
[1772921613799,0.54857921,1968.4,1967.2,0.59832446]
[1772921614712,0.54857921,1968.4,1967.5,0.594528]
[1772921615807,0.54857921,1968.4,1967.9,0.594528]
[1772921618211,0.54857921,1968.4,1967.6,1.80771792]
[1772921618410,0.54857921,1968.4,1967.7,0.594528]
[1772921619605,6.654,1968.6,1968.1,0.594528]
[1772921619606,0.54857921,1968.6,1968.1,0.594528]
[1772921622215,0.54857921,1968.6,1967.9,0.594528]
[1772921625211,0.54857921,1968.8,1968.1,0.594528]
[1772921626516,0.54857921,1968.6,1968.1,0.594528]
[1772921630518,0.54857921,1968.6,1967.7,0.594528]
[1772921630915,0.54857921,1968.6,1967.9,0.594528]
[1772921640923,0.54827921,1968.4,1967.7,0.58321441]
[1772921645521,4.23191138,1968.7,1967.7,0.58321441]
[1772921645522,0.55112619,1968.2,1967.7,0.58321441]
[1772921645721,0.55112619,1968.2,1967.3,0.36591783]
[1772921648531,0.55112619,1968.1,1967.3,0.36591783]
[1772921654332,0.55112619,1968.1,1967.5,0.37227197]
[1772921657339,0.55112619,1968.2,1967.5,0.37227197]
[1772921660752,0.55112619,1968.4,1967.9,0.36666859]
[1772921665143,0.55112619,1968.4,1967.5,0.35779079]
[1772921665343,0.55112619,1968.2,1967.5,0.35779079]
[1772921668349,0.55112619,1968.2,1967.7,0.30521118]
[1772921690766,4.63526054,1968.7,1967.7,0.30521118]
[1772921690973,0.59687696,1968.4,1967.7,0.30521118]
[1772921691770,0.59687696,1968.2,1967.3,10.93505465]
[1772921691973,0.59687696,1968.2,1967.3,0.28531455]
[1772921692578,0.59687696,1968.2,1967.2,0.28911101]
[1772921693474,0.59687696,1967.6,1966.9,0.27153611]
[1772921693672,11.20545367,1968.1,1966.9,0.27153611]
[1772921693673,0.59687696,1968.1,1966.9,0.27153611]
[1772921693869,0.59687696,1967.9,1966.9,0.27153611]
[1772921694074,0.59687696,1967.7,1966.9,0.27153611]
[1772921694573,0.60256426,1967.7,1966.9,0.27698977]
[1772921696476,0.60256426,1967.7,1967.0,0.26423805]
[1772921699080,0.0056873,1967.7,1967.0,0.26423805]
[1772921699682,0.59687696,1967.9,1967.0,0.26423805]
[1772921700875,0.60294613,1967.9,1966.9,0.00545366]
[1772921701080,0.60294613,1967.9,1967.0,0.26434183]
[1772921712495,0.56355423,1968.0,1967.3,0.23277519]
[1772921713497,0.56988237,1968.0,1967.3,0.23277519]
[1772921724807,0.56988237,1968.0,1967.1,0.55014606]
[1772921738526,0.56988237,1968.0,1967.3,0.58291144]
[1772921747923,0.56988237,1968.0,1967.2,1.80819727]
[1772921747924,0.00632814,1968.0,1967.6,0.58291144]
[1772921748129,0.59553367,1968.4,1968.0,0.58291144]
[1772921748330,0.59553367,1968.4,1967.7,2.39110871]
[1772921748626,0.59553367,1968.4,1967.8,0.58291144]
[1772921749027,0.59943877,1968.4,1967.8,0.58291144]
[1772921769234,0.59943877,1968.4,1967.6,0.5855262]
[1772921776241,0.54692085,1968.2,1967.6,0.5855262]
[1772921777537,0.54692085,1968.2,1967.7,1.80819727]
[1772921777737,0.54692085,1968.2,1967.8,0.5855262]
[1772921778141,0.54692085,1968.3,1967.8,0.5855262]
[1772921792460,0.54692085,1968.3,1967.7,0.58974918]
[1772921807462,0.59563133,1968.4,1967.7,0.58974918]
[1772921807666,0.0039051,1968.4,1967.7,0.58974918]
[1772921834585,0.41836677,1968.8,1967.7,0.58974918]
[1772921834586,0.57940721,1968.8,1967.8,0.57350869]
[1772921834893,0.57940721,1968.9,1968.1,0.57350869]
[1772921835491,0.5838968,1968.9,1968.1,0.57350869]
[1772921841894,0.00448959,1968.9,1968.1,0.57350869]
[1772921850701,0.57940721,1969.1,1968.1,0.57350869]
[1772921851203,0.57940721,1969.6,1968.4,0.57350869]
[1772921851404,0.57940721,1969.4,1968.6,0.57350869]
[1772921851699,0.58368529,1969.4,1968.6,0.57742892]
[1772921860509,0.58368529,1969.4,1968.8,0.54165876]
[1772921873517,0.59423478,1969.6,1969.2,0.54165876]
[1772921874717,0.59833867,1969.6,1969.2,0.54165876]
[1772921900635,0.25251572,1969.6,1969.2,0.54165876]
[1772921904745,0.25251572,1969.6,1968.8,0.56498479]
[1772921907842,2.05780382,1969.6,1968.8,0.56498479]
[1772921908041,0.59219385,1969.5,1968.8,0.56498479]
[1772921909044,0.59219385,1969.3,1968.6,0.00392023]
[1772921909348,0.59219385,1969.1,1968.6,0.56890502]
[1772921910749,0.59219385,1969.1,1968.6,0.00392023]
[1772921912345,0.59219385,1969.1,1968.4,0.56176314]
[1772921913450,0.59219385,1969.1,1968.4,0.56700356]
[1772921914248,0.54537366,1968.9,1968.4,0.00524042]
[1772921914841,0.54537366,1968.9,1968.4,0.56700356]